[Event "*** SCC Grand Prix: Titled Tuesday Blitz"]
[Site "Chess.com"]
[Date "2020.09.08"]
[Round "5"]
[White "Bastiandash"]
[Black "Misticpikachu"]
[Result "0-1"]
[WhiteElo "2401"]
[BlackElo "2277"]
[TimeControl "180+1"]
[EndTime "10:58:17 PDT"]
[Termination "Misticpikachu won by resignation"]

1. d4 {[%clk 0:03:00.9]} 1... d5 {[%clk 0:02:50.4]} 2. Nf3 {[%clk 0:03:01.1]}
2... e6 {[%clk 0:02:45.5]} 3. c3 {[%clk 0:03:00.2]} 3... Nf6 {[%clk 0:02:44.4]}
4. Bg5 {[%clk 0:02:59.3]} 4... Be7 {[%clk 0:02:44.6]} 5. e3 {[%clk 0:02:59]}
5... O-O {[%clk 0:02:44.9]} 6. Bd3 {[%clk 0:02:58.6]} 6... b6 {[%clk 0:02:45.3]}
7. Nbd2 {[%clk 0:02:58.2]} 7... Bb7 {[%clk 0:02:45.8]} 8. O-O {[%clk 0:02:57.9]}
8... c5 {[%clk 0:02:46.3]} 9. Ne5 {[%clk 0:02:57.4]} 9... Nc6 {[%clk 0:02:46.5]}
10. f4 {[%clk 0:02:57.8]} 10... Qc7 {[%clk 0:02:28.8]} 11. Qf3 {[%clk
0:02:56.7]} 11... Ne8 {[%clk 0:02:18.2]} 12. Qh3 {[%clk 0:02:27.6]} 12... f5
{[%clk 0:02:09.9]} 13. Ndf3 {[%clk 0:02:19.9]} 13... h6 {[%clk 0:01:42.9]} 14.
Bxe7 {[%clk 0:02:03.8]} 14... Qxe7 {[%clk 0:01:40.4]} 15. Ng6 {[%clk 0:02:03.1]}
15... Qf6 {[%clk 0:01:34.7]} 16. Nxf8 {[%clk 0:02:02.8]} 16... Qxf8 {[%clk
0:01:35.6]} 17. Ne5 {[%clk 0:02:03.5]} 17... Ne7 {[%clk 0:01:32.3]} 18. g4
{[%clk 0:02:00.4]} 18... fxg4 {[%clk 0:01:29.7]} 19. Qxg4 {[%clk 0:01:56.1]}
19... Qf6 {[%clk 0:01:25.6]} 20. Kh1 {[%clk 0:01:40]} 20... Nf5 {[%clk
0:01:24.6]} 21. Bxf5 {[%clk 0:01:38.7]} 21... exf5 {[%clk 0:01:25.5]} 22. Qg2
{[%clk 0:01:33.4]} 22... Nd6 {[%clk 0:01:23.5]} 23. Rg1 {[%clk 0:01:24.6]} 23...
Ne4 {[%clk 0:01:16.5]} 24. Qf3 {[%clk 0:01:23.3]} 24... Re8 {[%clk 0:00:41.6]}
25. Rg6 {[%clk 0:01:23.1]} 25... Qh4 {[%clk 0:00:41.1]} 26. Rg2 {[%clk
0:00:56.1]} 26... Ba6 {[%clk 0:00:36.4]} 27. Rag1 {[%clk 0:00:48.9]} 27... Re7
{[%clk 0:00:33.5]} 28. Ng6 {[%clk 0:00:45.6]} 28... Qf6 {[%clk 0:00:23.3]} 29.
Nxe7+ {[%clk 0:00:44.3]} 29... Qxe7 {[%clk 0:00:24.2]} 30. Rxg7+ {[%clk
0:00:44.1]} 30... Qxg7 {[%clk 0:00:24.1]} 31. Rxg7+ {[%clk 0:00:45]} 31... Kxg7
{[%clk 0:00:25]} 32. Qg2+ {[%clk 0:00:37.1]} 32... Kf7 {[%clk 0:00:24.8]} 33.
Qf3 {[%clk 0:00:30]} 33... Nf6 {[%clk 0:00:24.1]} 34. Qh3 {[%clk 0:00:23.3]}
34... Kg6 {[%clk 0:00:19.7]} 35. Qg2+ {[%clk 0:00:18.3]} 35... Kf7 {[%clk
0:00:18]} 36. Qc2 {[%clk 0:00:18.4]} 36... Ke6 {[%clk 0:00:16.1]} 37. Qa4 {[%clk
0:00:17.9]} 37... Bd3 {[%clk 0:00:16.2]} 38. Qc6+ {[%clk 0:00:17.7]} 38... Kf7
{[%clk 0:00:15.9]} 39. dxc5 {[%clk 0:00:17.3]} 39... d4 {[%clk 0:00:14.1]} 40.
Qc7+ {[%clk 0:00:14.6]} 40... Kg6 {[%clk 0:00:11.2]} 41. cxd4 {[%clk 0:00:13.7]}
41... Kh5 {[%clk 0:00:08.8]} 42. Qe5 {[%clk 0:00:12.4]} 42... Ng4 {[%clk
0:00:07.8]} 43. Kg1 {[%clk 0:00:06.2]} 43... Nxe5 {[%clk 0:00:07.5]} 44. fxe5
{[%clk 0:00:06.8]} 44... bxc5 {[%clk 0:00:07.8]} 45. dxc5 {[%clk 0:00:07.7]}
45... Kg6 {[%clk 0:00:07.8]} 46. c6 {[%clk 0:00:05.1]} 46... Bb5 {[%clk
0:00:06.7]} 47. c7 {[%clk 0:00:04.9]} 47... Bd7 {[%clk 0:00:06.7]} 48. Kf2
{[%clk 0:00:04]} 48... Kf7 {[%clk 0:00:07.1]} 49. Kg3 {[%clk 0:00:04.9]} 49...
Ke6 {[%clk 0:00:07]} 50. Kf4 {[%clk 0:00:05.8]} 50... a5 {[%clk 0:00:04.7]} 51.
a3 {[%clk 0:00:05.6]} 51... a4 {[%clk 0:00:04.2]} 52. e4 {[%clk 0:00:06.3]}
52... fxe4 {[%clk 0:00:03.1]} 53. Kxe4 {[%clk 0:00:07.2]} 53... Bc6+ {[%clk
0:00:02.6]} 54. Kd4 {[%clk 0:00:05.9]} 54... Bb7 {[%clk 0:00:03.5]} 55. Kc5
{[%clk 0:00:03.5]} 55... Kxe5 {[%clk 0:00:03.8]} 56. Kb5 {[%clk 0:00:01.8]}
56... Kd6 {[%clk 0:00:01.6]} 57. Kxa4 {[%clk 0:00:02.7]} 57... Kxc7 {[%clk
0:00:01.9]} 58. Kb4 {[%clk 0:00:03.6]} 58... Bc6 {[%clk 0:00:02.2]} 59. Kc5
{[%clk 0:00:04.5]} 59... Bd7 {[%clk 0:00:01.7]} 60. b4 {[%clk 0:00:05]} 60... h5
{[%clk 0:00:02.1]} 61. Kd5 {[%clk 0:00:05.1]} 61... Kb6 {[%clk 0:00:02]} 62. Kd6
{[%clk 0:00:04.1]} 62... Bg4 {[%clk 0:00:01.2]} 63. a4 {[%clk 0:00:04]} 63...
Bd1 {[%clk 0:00:02.1]} 64. a5+ {[%clk 0:00:03.4]} 64... Kb5 {[%clk 0:00:02.5]}
65. Kc7 {[%clk 0:00:03.7]} 65... Kxb4 {[%clk 0:00:01.9]} 66. a6 {[%clk
0:00:04.2]} 66... Bf3 {[%clk 0:00:02.5]} 67. a7 {[%clk 0:00:04.5]} 67... Kc3
{[%clk 0:00:03]} 68. Kb8 {[%clk 0:00:04.6]} 68... Kd2 {[%clk 0:00:03.5]} 69.
a8=Q {[%clk 0:00:04.8]} 69... Bxa8 {[%clk 0:00:03.8]} 70. Kxa8 {[%clk
0:00:05.7]} 70... Ke3 {[%clk 0:00:04.7]} 71. Kb7 {[%clk 0:00:06.6]} 71... Kf2
{[%clk 0:00:05.2]} 72. Kc6 {[%clk 0:00:07.5]} 72... Kg2 {[%clk 0:00:05.8]} 73.
Kd5 {[%clk 0:00:08.2]} 73... Kxh2 {[%clk 0:00:06.2]} 74. Ke4 {[%clk 0:00:09.1]}
74... Kg3 {[%clk 0:00:06.6]} 75. Ke3 {[%clk 0:00:09.1]} 75... h4 {[%clk
0:00:07]} 76. Ke2 {[%clk 0:00:10]} 76... Kg2 {[%clk 0:00:07.3]} 0-1

[Event "*** SCC Grand Prix: Titled Tuesday Blitz"]
[Site "Chess.com"]
[Date "2020.09.08"]
[Round "5"]
[White "sokidze"]
[Black "GM_Levan_Pantsulaia"]
[Result "0-1"]
[WhiteElo "2610"]
[BlackElo "2857"]
[TimeControl "180+1"]
[EndTime "10:58:37 PDT"]
[Termination "GM_Levan_Pantsulaia won on time"]

1. d4 {[%clk 0:03:00.9]} 1... Nf6 {[%clk 0:02:59.2]} 2. g3 {[%clk 0:03:01.2]}
2... c5 {[%clk 0:02:59]} 3. d5 {[%clk 0:03:01.2]} 3... g6 {[%clk 0:02:59.2]} 4.
Bg2 {[%clk 0:03:00.9]} 4... Bg7 {[%clk 0:02:59.6]} 5. c4 {[%clk 0:03:01.2]} 5...
O-O {[%clk 0:02:59]} 6. Nc3 {[%clk 0:03:01.3]} 6... e6 {[%clk 0:02:59.3]} 7. Nf3
{[%clk 0:02:58.1]} 7... exd5 {[%clk 0:02:59.8]} 8. cxd5 {[%clk 0:02:59]} 8... d6
{[%clk 0:03:00.2]} 9. O-O {[%clk 0:02:59.4]} 9... Re8 {[%clk 0:03:00.5]} 10. Nd2
{[%clk 0:02:58]} 10... Nbd7 {[%clk 0:02:51.7]} 11. h3 {[%clk 0:02:54.1]} 11...
a6 {[%clk 0:02:51]} 12. a4 {[%clk 0:02:52.8]} 12... Rb8 {[%clk 0:02:51.3]} 13.
Nc4 {[%clk 0:02:51.5]} 13... Nb6 {[%clk 0:02:51.4]} 14. Na3 {[%clk 0:02:36.8]}
14... Bd7 {[%clk 0:02:51.3]} 15. e4 {[%clk 0:02:10.8]} 15... Nxa4 {[%clk
0:01:25]} 16. Nxa4 {[%clk 0:01:50.6]} 16... Nxe4 {[%clk 0:01:23.5]} 17. Bxe4
{[%clk 0:01:15.7]} 17... Rxe4 {[%clk 0:01:22]} 18. Nc3 {[%clk 0:01:16.4]} 18...
Rd4 {[%clk 0:01:19.1]} 19. Qf3 {[%clk 0:01:05.2]} 19... Bxh3 {[%clk 0:01:17]}
20. Re1 {[%clk 0:01:04.3]} 20... Bg4 {[%clk 0:01:08.9]} 21. Qg2 {[%clk
0:01:01.8]} 21... Bf5 {[%clk 0:00:25.3]} 22. Be3 {[%clk 0:00:41.6]} 22... Rb4
{[%clk 0:00:24.8]} 23. Re2 {[%clk 0:00:41]} 23... h5 {[%clk 0:00:24.3]} 24. f3
{[%clk 0:00:28]} 24... b5 {[%clk 0:00:23.4]} 25. Rf1 {[%clk 0:00:22.4]} 25...
Rb3 {[%clk 0:00:22.7]} 26. Nab1 {[%clk 0:00:17.4]} 26... Bd3 {[%clk 0:00:21.3]}
27. Rd1 {[%clk 0:00:16.8]} 27... Bxe2 {[%clk 0:00:20.9]} 28. Qxe2 {[%clk
0:00:17.7]} 28... c4 {[%clk 0:00:18.8]} 29. Qc2 {[%clk 0:00:14.7]} 29... Qe7
{[%clk 0:00:17.7]} 30. Bf2 {[%clk 0:00:14.7]} 30... b4 {[%clk 0:00:16.6]} 31.
Ne4 {[%clk 0:00:09.8]} 31... Rxf3 {[%clk 0:00:16.4]} 32. Nbd2 {[%clk 0:00:10.5]}
32... Rf5 {[%clk 0:00:12.6]} 33. Nxc4 {[%clk 0:00:10.9]} 33... b3 {[%clk
0:00:08.7]} 34. Qd3 {[%clk 0:00:08.6]} 34... Be5 {[%clk 0:00:08.4]} 35. Nxe5
{[%clk 0:00:08.6]} 35... Rxe5 {[%clk 0:00:06.9]} 36. Nc3 {[%clk 0:00:08.8]}
36... Re8 {[%clk 0:00:05.5]} 37. Kg2 {[%clk 0:00:07.4]} 37... Rg5 {[%clk
0:00:05.7]} 38. Qf3 {[%clk 0:00:07.4]} 38... Rf5 {[%clk 0:00:05.5]} 39. Qd3
{[%clk 0:00:06.1]} 39... Qf6 {[%clk 0:00:04.7]} 40. Rf1 {[%clk 0:00:06.2]} 40...
Qe7 {[%clk 0:00:03]} 41. Qd2 {[%clk 0:00:03.7]} 41... h4 {[%clk 0:00:03]} 42. g4
{[%clk 0:00:03.7]} 42... h3+ {[%clk 0:00:02.4]} 43. Kxh3 {[%clk 0:00:03.6]}
43... Rf3+ {[%clk 0:00:02.7]} 44. Kg2 {[%clk 0:00:04.2]} 44... Qf6 {[%clk
0:00:03.4]} 45. Qd4 {[%clk 0:00:02.6]} 45... Qxd4 {[%clk 0:00:02.3]} 46. Bxd4
{[%clk 0:00:03.5]} 46... Rxf1 {[%clk 0:00:02.7]} 47. Kxf1 {[%clk 0:00:04.4]}
47... Rc8 {[%clk 0:00:02.8]} 48. Ke2 {[%clk 0:00:03.9]} 48... Rc4 {[%clk
0:00:03.7]} 49. Kd3 {[%clk 0:00:04.4]} 49... Rb4 {[%clk 0:00:04.1]} 50. Ne4
{[%clk 0:00:04.5]} 50... a5 {[%clk 0:00:04.4]} 51. Bc3 {[%clk 0:00:03.9]} 51...
Rb5 {[%clk 0:00:03.2]} 52. Kc4 {[%clk 0:00:04.2]} 52... Rb8 {[%clk 0:00:03]} 53.
Nxd6 {[%clk 0:00:04.8]} 53... a4 {[%clk 0:00:03.6]} 54. Nb5 {[%clk 0:00:04.3]}
54... f5 {[%clk 0:00:03.9]} 55. gxf5 {[%clk 0:00:04]} 55... gxf5 {[%clk
0:00:04.8]} 56. d6 {[%clk 0:00:04.9]} 56... f4 {[%clk 0:00:04.4]} 57. Nd4 {[%clk
0:00:02.3]} 57... a3 {[%clk 0:00:02.7]} 58. Nxb3 {[%clk 0:00:02.2]} 58... a2
{[%clk 0:00:02.5]} 59. Na1 {[%clk 0:00:01.9]} 59... f3 {[%clk 0:00:03.1]} 60.
Bd4 {[%clk 0:00:02.3]} 60... Kf7 {[%clk 0:00:03.7]} 61. b4 {[%clk 0:00:01.7]}
61... Ke6 {[%clk 0:00:02.8]} 62. Bc5 {[%clk 0:00:02]} 62... Rc8 {[%clk
0:00:02.6]} 63. Kd3 {[%clk 0:00:01.5]} 63... Rc6 {[%clk 0:00:01.9]} 64. Ke3
{[%clk 0:00:01.4]} 64... Ra6 {[%clk 0:00:02.4]} 65. Kxf3 {[%clk 0:00:01.7]}
65... Ra3+ {[%clk 0:00:03]} 66. Ke2 {[%clk 0:00:02.4]} 66... Rc3 {[%clk
0:00:03.1]} 67. Kd2 {[%clk 0:00:02.8]} 67... Rc4 {[%clk 0:00:03.8]} 68. Kd3
{[%clk 0:00:01.9]} 68... Rc1 {[%clk 0:00:03.4]} 69. Nb3 {[%clk 0:00:02.6]} 69...
Rb1 {[%clk 0:00:03.2]} 70. Bd4 {[%clk 0:00:01.7]} 70... Rxb3+ {[%clk 0:00:02.4]}
71. Kc2 {[%clk 0:00:02.6]} 71... Rb1 {[%clk 0:00:01.8]} 0-1

[Event "*** SCC Grand Prix: Titled Tuesday Blitz"]
[Site "Chess.com"]
[Date "2020.09.08"]
[Round "5"]
[White "Lion-Al-Messi"]
[Black "The_Machine04"]
[Result "1-0"]
[WhiteElo "2546"]
[BlackElo "2275"]
[TimeControl "180+1"]
[EndTime "10:58:37 PDT"]
[Termination "Lion-Al-Messi won by checkmate"]

1. e4 {[%clk 0:03:00.9]} 1... d6 {[%clk 0:02:59.8]} 2. d4 {[%clk 0:03:00.1]}
2... Nf6 {[%clk 0:02:58.7]} 3. Nc3 {[%clk 0:03:01]} 3... e5 {[%clk 0:02:57.4]}
4. Nf3 {[%clk 0:03:00.2]} 4... Nbd7 {[%clk 0:02:57.1]} 5. Be2 {[%clk 0:02:59.1]}
5... Be7 {[%clk 0:02:52]} 6. O-O {[%clk 0:02:58.9]} 6... O-O {[%clk 0:02:49.7]}
7. Re1 {[%clk 0:02:53.9]} 7... c6 {[%clk 0:02:48.2]} 8. a4 {[%clk 0:02:53.2]}
8... Qc7 {[%clk 0:02:47.7]} 9. h3 {[%clk 0:02:41.9]} 9... h6 {[%clk 0:02:45.9]}
10. Be3 {[%clk 0:02:41.4]} 10... Re8 {[%clk 0:02:39.7]} 11. Qd2 {[%clk
0:02:36.2]} 11... Nf8 {[%clk 0:02:39.4]} 12. Rad1 {[%clk 0:02:34]} 12... Ng6
{[%clk 0:02:38.1]} 13. Nh2 {[%clk 0:02:27]} 13... Be6 {[%clk 0:02:36]} 14. d5
{[%clk 0:02:23.3]} 14... cxd5 {[%clk 0:02:35.3]} 15. exd5 {[%clk 0:02:24.2]}
15... Bd7 {[%clk 0:02:35.3]} 16. Nb5 {[%clk 0:02:23.4]} 16... Bxb5 {[%clk
0:02:32.8]} 17. Bxb5 {[%clk 0:02:24.3]} 17... Rec8 {[%clk 0:02:32.5]} 18. c3
{[%clk 0:02:24]} 18... Ne4 {[%clk 0:02:23.7]} 19. Qc2 {[%clk 0:02:22.8]} 19...
Nc5 {[%clk 0:02:19.3]} 20. Bxc5 {[%clk 0:02:22.5]} 20... Qxc5 {[%clk 0:02:16.4]}
21. Ng4 {[%clk 0:02:22.8]} 21... Nf4 {[%clk 0:01:59]} 22. Qf5 {[%clk 0:02:22.9]}
22... h5 {[%clk 0:01:49.5]} 23. Nh2 {[%clk 0:01:41.2]} 23... g6 {[%clk
0:01:39.1]} 24. Qc2 {[%clk 0:01:34.2]} 24... a6 {[%clk 0:01:21.3]} 25. Bf1
{[%clk 0:01:32.9]} 25... b5 {[%clk 0:01:16.5]} 26. a5 {[%clk 0:01:30.6]} 26...
Nxd5 {[%clk 0:00:54.2]} 27. Nf3 {[%clk 0:01:30]} 27... Nf4 {[%clk 0:00:47.5]}
28. Nd4 {[%clk 0:01:29.6]} 28... Bf8 {[%clk 0:00:36.2]} 29. Qe4 {[%clk
0:01:23.4]} 29... exd4 {[%clk 0:00:20.7]} 30. Qxf4 {[%clk 0:01:21.4]} 30... dxc3
{[%clk 0:00:20.8]} 31. bxc3 {[%clk 0:01:19]} 31... Qxc3 {[%clk 0:00:20.6]} 32.
Bd3 {[%clk 0:01:17.5]} 32... Re8 {[%clk 0:00:11.2]} 33. Be4 {[%clk 0:01:14.1]}
33... Rad8 {[%clk 0:00:07.7]} 34. Re3 {[%clk 0:01:11.2]} 34... Qe5 {[%clk
0:00:06.1]} 35. Qf3 {[%clk 0:01:10.9]} 35... Qg7 {[%clk 0:00:02.9]} 36. Red3
{[%clk 0:01:08.9]} 36... Re5 {[%clk 0:00:03]} 37. Bb7 {[%clk 0:01:08]} 37... Qh6
{[%clk 0:00:02]} 38. Bxa6 {[%clk 0:01:07.3]} 38... Qg5 {[%clk 0:00:02.4]} 39.
Bb7 {[%clk 0:01:07]} 39... Qf5 {[%clk 0:00:02.4]} 40. a6 {[%clk 0:01:07.1]}
40... Qxf3 {[%clk 0:00:02.2]} 41. Rxf3 {[%clk 0:01:05.2]} 41... b4 {[%clk
0:00:02.6]} 42. a7 {[%clk 0:01:05]} 42... Ra5 {[%clk 0:00:02.9]} 43. a8=Q {[%clk
0:01:02.9]} 43... Rdxa8 {[%clk 0:00:03.5]} 44. Bxa8 {[%clk 0:01:03.8]} 44...
Rxa8 {[%clk 0:00:04.1]} 45. Rb3 {[%clk 0:01:03.9]} 45... Rb8 {[%clk 0:00:04.4]}
46. Rd5 {[%clk 0:01:03.7]} 46... Rb6 {[%clk 0:00:04.2]} 47. Kf1 {[%clk
0:01:03.5]} 47... Kg7 {[%clk 0:00:04.5]} 48. Ke2 {[%clk 0:01:03.8]} 48... Kf6
{[%clk 0:00:04.1]} 49. Kd3 {[%clk 0:01:04.1]} 49... Ke6 {[%clk 0:00:04.6]} 50.
Ra5 {[%clk 0:00:39]} 50... d5 {[%clk 0:00:05]} 51. Ra8 {[%clk 0:00:29.9]} 51...
Be7 {[%clk 0:00:04.3]} 52. Re8 {[%clk 0:00:25.4]} 52... Rc6 {[%clk 0:00:04]} 53.
Rxb4 {[%clk 0:00:22.6]} 53... Kd7 {[%clk 0:00:04.2]} 54. Rbb8 {[%clk 0:00:22.6]}
54... Re6 {[%clk 0:00:02.5]} 55. Rg8 {[%clk 0:00:19.3]} 55... Rf6 {[%clk
0:00:02.3]} 56. f3 {[%clk 0:00:18.7]} 56... Rf5 {[%clk 0:00:02.3]} 57. Ra8
{[%clk 0:00:18.3]} 57... Ke6 {[%clk 0:00:02.4]} 58. Ra6+ {[%clk 0:00:18.2]}
58... Ke5 {[%clk 0:00:02.7]} 59. Ra4 {[%clk 0:00:11.9]} 59... Bf6 {[%clk
0:00:02.5]} 60. Re8+ {[%clk 0:00:10.5]} 60... Kd6 {[%clk 0:00:02.9]} 61. Ra6+
{[%clk 0:00:10.7]} 61... Kd7 {[%clk 0:00:03.1]} 62. Rb8 {[%clk 0:00:08.1]} 62...
Ke7 {[%clk 0:00:03.3]} 63. Rb7+ {[%clk 0:00:08.4]} 63... Kf8 {[%clk 0:00:03.6]}
64. Ke3 {[%clk 0:00:06.2]} 64... Kg7 {[%clk 0:00:03.6]} 65. g4 {[%clk 0:00:06]}
65... hxg4 {[%clk 0:00:03.5]} 66. hxg4 {[%clk 0:00:06.9]} 66... Bg5+ {[%clk
0:00:03.9]} 67. Ke2 {[%clk 0:00:06]} 67... Re5+ {[%clk 0:00:03.9]} 68. Kf2
{[%clk 0:00:06.4]} 68... d4 {[%clk 0:00:03.2]} 69. Raa7 {[%clk 0:00:06.3]} 69...
Be3+ {[%clk 0:00:02.4]} 70. Kg2 {[%clk 0:00:06]} 70... Rc5 {[%clk 0:00:02.4]}
71. Rxf7+ {[%clk 0:00:05.8]} 71... Kh6 {[%clk 0:00:03]} 72. Rh7+ {[%clk
0:00:05.8]} 72... Kg5 {[%clk 0:00:03.5]} 73. Rhe7 {[%clk 0:00:05.6]} 73... Rc2+
{[%clk 0:00:03.4]} 74. Kh3 {[%clk 0:00:01.9]} 74... Kf4 {[%clk 0:00:03]} 75.
Rf7+ {[%clk 0:00:01.6]} 75... Kg5 {[%clk 0:00:03.4]} 76. Ra5+ {[%clk 0:00:01.6]}
76... Kh6 {[%clk 0:00:03.8]} 77. Kg3 {[%clk 0:00:01.2]} 77... Bf2+ {[%clk
0:00:01.8]} 78. Kh3 {[%clk 0:00:01.1]} 78... Be3 {[%clk 0:00:02.3]} 79. f4
{[%clk 0:00:01.6]} 79... d3 {[%clk 0:00:01.8]} 80. g5+ {[%clk 0:00:02]} 80...
Kh5 {[%clk 0:00:02.1]} 81. Rh7# {[%clk 0:00:02.9]} 1-0

[Event "*** SCC Grand Prix: Titled Tuesday Blitz"]
[Site "Chess.com"]
[Date "2020.09.08"]
[Round "5"]
[White "Yuwono"]
[Black "Iskusnyh"]
[Result "1-0"]
[WhiteElo "2421"]
[BlackElo "2577"]
[TimeControl "180+1"]
[EndTime "10:59:12 PDT"]
[Termination "Yuwono won on time"]

1. d4 {[%clk 0:02:59.7]} 1... d5 {[%clk 0:02:59.1]} 2. Bf4 {[%clk 0:02:57.3]}
2... Nf6 {[%clk 0:02:55.8]} 3. e3 {[%clk 0:02:57]} 3... c5 {[%clk 0:02:55.8]} 4.
Nd2 {[%clk 0:02:56.1]} 4... Nc6 {[%clk 0:02:54]} 5. Ngf3 {[%clk 0:02:55.2]} 5...
cxd4 {[%clk 0:02:51.3]} 6. exd4 {[%clk 0:02:55]} 6... Bg4 {[%clk 0:02:51.4]} 7.
c3 {[%clk 0:02:54.6]} 7... e6 {[%clk 0:02:51]} 8. Bd3 {[%clk 0:02:53.5]} 8...
Be7 {[%clk 0:02:47.9]} 9. O-O {[%clk 0:02:52.9]} 9... O-O {[%clk 0:02:47.7]} 10.
h3 {[%clk 0:02:51.3]} 10... Bh5 {[%clk 0:02:46.4]} 11. Re1 {[%clk 0:02:49]}
11... Rc8 {[%clk 0:02:38.3]} 12. Qe2 {[%clk 0:02:47.9]} 12... Re8 {[%clk
0:02:13.7]} 13. Bg5 {[%clk 0:02:36.2]} 13... Nd7 {[%clk 0:02:09.5]} 14. Bf4
{[%clk 0:02:24.1]} 14... Nf8 {[%clk 0:02:00.6]} 15. Rad1 {[%clk 0:02:15]} 15...
Bg6 {[%clk 0:01:53.1]} 16. Ne5 {[%clk 0:02:07.6]} 16... Nxe5 {[%clk 0:01:48.6]}
17. Bxe5 {[%clk 0:02:07.6]} 17... Nd7 {[%clk 0:01:46]} 18. Bg3 {[%clk
0:01:59.9]} 18... Qb6 {[%clk 0:01:43.1]} 19. Nf3 {[%clk 0:01:59]} 19... Bh5
{[%clk 0:01:35.4]} 20. Rd2 {[%clk 0:01:57.1]} 20... Bd6 {[%clk 0:01:31.4]} 21.
Kh2 {[%clk 0:01:05.4]} 21... Bxg3+ {[%clk 0:01:26.8]} 22. fxg3 {[%clk
0:01:05.2]} 22... Bg6 {[%clk 0:01:21.8]} 23. Bxg6 {[%clk 0:00:58.9]} 23... hxg6
{[%clk 0:01:21.4]} 24. Qe3 {[%clk 0:00:56.1]} 24... Nf8 {[%clk 0:01:18.3]} 25.
Ne5 {[%clk 0:00:53.9]} 25... f6 {[%clk 0:01:13.2]} 26. Nd3 {[%clk 0:00:50.2]}
26... Qd6 {[%clk 0:01:10.6]} 27. Qf3 {[%clk 0:00:48.5]} 27... g5 {[%clk
0:01:08.4]} 28. Rde2 {[%clk 0:00:44.1]} 28... Re7 {[%clk 0:01:07]} 29. Nb4
{[%clk 0:00:37.9]} 29... Rce8 {[%clk 0:01:05]} 30. Nd3 {[%clk 0:00:37.5]} 30...
b6 {[%clk 0:01:02.6]} 31. a3 {[%clk 0:00:36.4]} 31... Ng6 {[%clk 0:00:55.3]} 32.
Kh1 {[%clk 0:00:35.1]} 32... Nh8 {[%clk 0:00:49.5]} 33. Nf2 {[%clk 0:00:34]}
33... Nf7 {[%clk 0:00:41.7]} 34. Ng4 {[%clk 0:00:33.8]} 34... Qd7 {[%clk
0:00:40.8]} 35. Rf1 {[%clk 0:00:28.3]} 35... Nd6 {[%clk 0:00:38.9]} 36. Nf2
{[%clk 0:00:19.2]} 36... Nf5 {[%clk 0:00:35.7]} 37. Rfe1 {[%clk 0:00:16.2]}
37... Qd6 {[%clk 0:00:35]} 38. Kh2 {[%clk 0:00:16.7]} 38... a5 {[%clk
0:00:32.5]} 39. Ng4 {[%clk 0:00:14.8]} 39... b5 {[%clk 0:00:31.6]} 40. Ne3
{[%clk 0:00:13.7]} 40... Nh6 {[%clk 0:00:29.1]} 41. Ng4 {[%clk 0:00:13.2]} 41...
Nf7 {[%clk 0:00:27.9]} 42. Kh1 {[%clk 0:00:10.5]} 42... b4 {[%clk 0:00:27.3]}
43. axb4 {[%clk 0:00:10.5]} 43... axb4 {[%clk 0:00:27.2]} 44. h4 {[%clk
0:00:11]} 44... bxc3 {[%clk 0:00:24.2]} 45. bxc3 {[%clk 0:00:10.8]} 45... Qd7
{[%clk 0:00:21.4]} 46. h5 {[%clk 0:00:11]} 46... Qd6 {[%clk 0:00:20.2]} 47. Rf2
{[%clk 0:00:10.6]} 47... Rf8 {[%clk 0:00:19.4]} 48. Nxf6+ {[%clk 0:00:09.5]}
48... gxf6 {[%clk 0:00:17.9]} 49. Qxf6 {[%clk 0:00:10.4]} 49... Ree8 {[%clk
0:00:14.7]} 50. Qg6+ {[%clk 0:00:09.3]} 50... Kh8 {[%clk 0:00:14.7]} 51. Qf6+
{[%clk 0:00:09.2]} 51... Kh7 {[%clk 0:00:14.1]} 52. Qg6+ {[%clk 0:00:06.5]}
52... Kh8 {[%clk 0:00:14.2]} 53. Rxf7 {[%clk 0:00:06.7]} 53... Rxf7 {[%clk
0:00:13.2]} 54. Qxf7 {[%clk 0:00:07.6]} 54... Rf8 {[%clk 0:00:12.5]} 55. Qg6
{[%clk 0:00:07.9]} 55... Qxg3 {[%clk 0:00:11.9]} 56. Qh6+ {[%clk 0:00:07.7]}
56... Kg8 {[%clk 0:00:12]} 57. Qxe6+ {[%clk 0:00:07.8]} 57... Kh8 {[%clk
0:00:11.7]} 58. Qe5+ {[%clk 0:00:07.4]} 58... Qxe5 {[%clk 0:00:11.1]} 59. Rxe5
{[%clk 0:00:08.1]} 59... Rc8 {[%clk 0:00:11.1]} 60. Rxd5 {[%clk 0:00:07.6]}
60... g4 {[%clk 0:00:10.9]} 61. Kh2 {[%clk 0:00:07.2]} 61... Rxc3 {[%clk
0:00:10.2]} 62. Rg5 {[%clk 0:00:07.8]} 62... Rd3 {[%clk 0:00:09.8]} 63. Rxg4
{[%clk 0:00:07.8]} 63... Kh7 {[%clk 0:00:09.9]} 64. Rf4 {[%clk 0:00:08.2]} 64...
Kh6 {[%clk 0:00:09.9]} 65. Re4 {[%clk 0:00:05.1]} 65... Kxh5 {[%clk 0:00:09.2]}
66. g3 {[%clk 0:00:06]} 66... Kg5 {[%clk 0:00:08.8]} 67. Kh3 {[%clk 0:00:05.8]}
67... Kf5 {[%clk 0:00:08.6]} 68. Re5+ {[%clk 0:00:05.8]} 68... Kf6 {[%clk
0:00:08.4]} 69. Rd5 {[%clk 0:00:06.2]} 69... Ke6 {[%clk 0:00:08.4]} 70. Rd8
{[%clk 0:00:06]} 70... Kf5 {[%clk 0:00:07.4]} 71. Kh4 {[%clk 0:00:05]} 71... Rd1
{[%clk 0:00:06.9]} 72. Rf8+ {[%clk 0:00:04.8]} 72... Kg6 {[%clk 0:00:06.7]} 73.
Rf4 {[%clk 0:00:03.2]} 73... Rd3 {[%clk 0:00:06.1]} 74. Kg4 {[%clk 0:00:03.6]}
74... Rd1 {[%clk 0:00:05.4]} 75. Re4 {[%clk 0:00:04]} 75... Kf6 {[%clk 0:00:05]}
76. Kf4 {[%clk 0:00:03.7]} 76... Rf1+ {[%clk 0:00:03.6]} 77. Kg4 {[%clk
0:00:04.1]} 77... Rd1 {[%clk 0:00:03.3]} 78. Rf4+ {[%clk 0:00:05]} 78... Kg6
{[%clk 0:00:02.6]} 79. Kf3 {[%clk 0:00:05.9]} 79... Rd3+ {[%clk 0:00:02.4]} 80.
Kf2 {[%clk 0:00:06.4]} 80... Kg5 {[%clk 0:00:02.6]} 81. Re4 {[%clk 0:00:05.1]}
81... Kf5 {[%clk 0:00:02.2]} 82. Rh4 {[%clk 0:00:04.7]} 82... Kg5 {[%clk
0:00:02]} 83. Kg2 {[%clk 0:00:04.9]} 83... Rd2+ {[%clk 0:00:01.4]} 84. Kh3
{[%clk 0:00:04.1]} 84... Rd1 {[%clk 0:00:01.6]} 85. Re4 {[%clk 0:00:03.4]} 85...
Rh1+ {[%clk 0:00:01.5]} 86. Kg2 {[%clk 0:00:03.9]} 86... Rd1 {[%clk 0:00:02.4]}
87. Re5+ {[%clk 0:00:04.3]} 87... Kf6 {[%clk 0:00:02.2]} 88. Re4 {[%clk
0:00:05]} 88... Kf5 {[%clk 0:00:02.2]} 89. Rf4+ {[%clk 0:00:04.8]} 89... Kg5
{[%clk 0:00:02.1]} 90. Kf3 {[%clk 0:00:05.7]} 90... Rd3+ {[%clk 0:00:02]} 91.
Ke4 {[%clk 0:00:06.2]} 91... Rxg3 {[%clk 0:00:01.5]} 92. Rf1 {[%clk 0:00:06.3]}
1-0